Cogmind - Beta 10.2 @@@ ROGUE MODE // 2021.12.22 @ 15:04:11 Player: DaddyWalrus Result: Destroyed by G-67 Veteran with Electrolaser Performance ------------- Evolutions (5) 2500 Regions Visited (14) 2800 Robots Destroyed (66) 330 Value Destroyed (2030) 2030 Prototype IDs (27) 540 Alien Tech Used (0) 0 Bonus (1371) 1371 TOTAL SCORE: 9571 Bonus ------- Follower Combat Kills 171 Entered Garrisons 400 Used RIF Installer 500 Aligned with FarCom 300 Cogmind --------- Core Integrity 0/1000 Matter 230/300 Energy 100/100 System Corruption 1% Temperature Cool (21) Movement Core (50) Location -5/Factory Parts ------- > --- POWER (2) -------- (None) > --- PROPULSION (6) --- (None) > --- UTILITY (7) ------ Advanced Signal Interpreter Hacking Suite > --- WEAPON (2) ------- (None) > --- INVENTORY (4) ---- Improved Maneuvering Thrusters Relay Coupler [Hunter] (20) Improved System Backup Module Improved Remote Datajack Peak State ------------ > --- POWER ------------ Micro Nuclear Core Light Fission Core > --- PROPULSION ------- Xenon Bombardment Thruster Xenon Bombardment Thruster Xenon Bombardment Thruster Xenon Bombardment Thruster Xenon Bombardment Thruster Nuclear Pulse Thruster > --- UTILITY ---------- Improved Heat Sink Large Storage Unit Advanced Signal Interpreter Hacking Suite Hacking Suite Improved System Shield Relay Coupler [NC] > --- WEAPON ----------- Improved Remote Datajack Chainsword > --- INVENTORY -------- Light Nuclear Core Xenon Bombardment Thruster Melee Analysis Suite Improved Transmission Jammer Advanced ECM Suite Improved Maneuvering Thrusters Improved System Shield Relay Coupler [Grunt] Improved System Backup Module Mini Grenade Launcher [Rating: 67] Favorites ----------- Power Improved Ion Engine Engine Improved Ion Engine Power Core Light Nuclear Core Propulsion Xenon Bombardment Thruster Treads Light Treads Leg Aluminum Leg Wheel Wheel Hover Unit Improved Hover Unit Flight Unit Xenon Bombardment Thruster Utility Large Storage Unit Device Improved Heat Sink Storage Large Storage Unit Processor Advanced Signal Interpreter Hackware Hacking Suite Protection Medium Armor Plating Weapon Heavy Assault Rifle Energy Gun AWS/Thermal Ballistic Gun Heavy Assault Rifle Ballistic Cannon Advanced Assault Cannon Launcher Mini Grenade Launcher Special Weapon Improved Remote Datajack Impact Weapon Hammer Slashing Weapon Chainsword Build | -11 -10 -10 -9 -9 -9 -8 -8 -7 -6 -6 -6 -5 -5 -5 ------- Run | Scr Mat Min Mat Min Exi Min Mat Fac Fac Gar Fac Fac Gar Fac Slots Evolved 10 | . . . 2 . . . 2 2 2 . . 2 . . Power 1 | . . . . . . . . . 1 . . . . . Propulsion 4 | . . . . . . . 2 1 1 . . . . . Utility 5 | . . . 2 . . . . 1 . . . 2 . . Weapon . | . . . . . . . . . . . . . . . Parts Attached 126 | 8 5 3 22 5 . . 32 25 4 . 13 1 4 4 Power 15 | 1 . . 2 1 . . 2 2 2 . 4 . 1 . Engine 6 | 1 . . 2 1 . . 1 1 . . . . . . Core 9 | . . . . . . . 1 1 2 . 4 . 1 . Reactor . | . . . . . . . . . . . . . . . Propulsion 35 | 3 . 1 6 . . . 11 9 1 . 3 . . 1 Treads 9 | 1 . 1 3 . . . 3 1 . . . . . . Leg 7 | . . . . . . . 7 . . . . . . . Wheel 6 | 2 . . 3 . . . 1 . . . . . . . Hover 3 | . . . . . . . . 3 . . . . . . Flight 10 | . . . . . . . . 5 1 . 3 . . 1 Utility 35 | 2 2 . 7 2 . . 5 8 1 . 4 1 1 2 Device 11 | . . . 3 . . . . 4 1 . 2 . . 1 Storage 5 | 2 2 . . . . . . . . . 1 . . . Processor 6 | . . . 2 1 . . 1 2 . . . . . . Hackware 5 | . . . . . . . . 1 . . 1 1 1 1 Protection 8 | . . . 2 1 . . 4 1 . . . . . . Artifact . | . . . . . . . . . . . . . . . Weapon 41 | 2 3 2 7 2 . . 14 6 . . 2 . 2 1 Energy Gun 6 | . 1 1 . . . . 3 1 . . . . . . Energy Cannon . | . . . . . . . . . . . . . . . Ballistic Gun 17 | 2 1 . 7 1 . . 6 . . . . . . . Ballistic Cannon 2 | . . . . . . . 2 . . . . . . . Launcher 6 | . 1 1 . 1 . . 1 . . . 1 . 1 . Special Weapon 1 | . . . . . . . . . . . . . 1 . Impact Weapon 2 | . . . . . . . 2 . . . . . . . Slashing Weapon 7 | . . . . . . . . 5 . . 1 . . 1 Piercing Weapon . | . . . . . . . . . . . . . . . Special Melee Weapon . | . . . . . . . . . . . . . . . Unidentified Prototypes 2 | . . . . . . . 1 . . . . . . 1 Parts Lost 33 | . . . 2 . . . 11 2 . . . . 3 15 Power 4 | . . . . . . . 1 . . . . . 2 1 Propulsion 14 | . . . 1 . . . 5 1 . . . . . 7 Utility 9 | . . . 1 . . . 1 1 . . . . 1 5 Weapon 6 | . . . . . . . 4 . . . . . . 2 Highest Loss Streak 15 | . . . 1 . . . 5 2 . . . . 3 15 Average Slot Usage (%) 94 | . 100 100 99 100 100 100 96 80 93 93 93 91 95 87 Engine 6 | . 14 14 11 11 11 11 4 2 . . . . . . Core 3 | . . . . . . . 4 4 13 13 12 11 9 4 Treads 8 | . 14 14 10 11 11 11 14 1 . . . . . . Leg 2 | . . . . . . . 12 2 . . . . . . Wheel 6 | . 14 14 11 11 11 11 6 . . . . . . . Flight 10 | . . . . . . . . 20 40 40 39 35 35 33 Device 2 | . . . 7 . . . . 5 4 6 6 5 4 . Storage 16 | . 28 28 22 22 22 22 18 7 6 6 6 5 5 4 Processor 7 | . . . 7 11 11 11 9 7 13 13 8 5 5 5 Hackware 4 | . . . . . . . . 6 6 6 10 14 20 23 Protection 6 | . . . 6 11 11 11 9 7 1 . . . . . Ballistic Gun 12 | . 19 15 21 21 22 22 13 . . . . . . . Launcher 1 | . 4 4 . . . . . . . . . 5 5 4 Slashing Weapon 1 | . . . . . . . . 2 . . 5 5 2 4 Naked Turns . | . . . . . . . . . . . . . . . Heaviest Build 52 | 16 42 42 48 50 50 50 52 52 42 38 38 34 37 26 Greatest Support 43 | 20 20 20 20 20 10 10 40 35 42 42 42 43 43 43 Greatest Overweight (x) 6 | 1 4 4 4 4 4 4 5 2 . . 1 . 1 6 Average Overweight (x) 1 | . 2 3 3 3 4 4 1 . . . . . . . Largest Inventory Capacity 16 | 8 16 16 16 16 16 16 16 16 10 10 10 10 10 10 Average Capacity 13 | 6 14 16 16 16 16 16 16 10 10 10 10 10 10 9 Most Carried 16 | 8 13 16 16 16 16 16 16 16 10 10 10 10 10 10 Average Carried 13 | 5 10 14 15 15 15 16 15 10 9 10 9 9 9 8 Final Capacity 16 | 8 16 16 16 16 16 16 16 10 10 10 10 10 10 4 Final Carried 16 | 8 13 16 16 16 16 16 16 10 10 10 10 10 9 4 Class Distribution -------------------- 42% | Mutant 30% | Scavenger-Mutant 15% | Hacker-Sprinter 10% | Sprinter Dominant Class ---------------- Mutant | -10/Materials Mutant | -10/Mines Scavenger-Mutant | -9/Materials Mutant | -9/Mines Mutant | -9/Exiles Mutant | -8/Mines Scavenger-Mutant | -8/Materials Mutant | -7/Factory Sprinter | -6/Factory Sprinter | -6/Garrison Hacker-Sprinter | -6/Factory Hacker-Sprinter | -5/Factory Hacker-Sprinter | -5/Garrison Hacker-Sprinter | -5/Factory Resources | -11 -10 -10 -9 -9 -9 -8 -8 -7 -6 -6 -6 -5 -5 -5 ----------- Run | Scr Mat Min Mat Min Exi Min Mat Fac Fac Gar Fac Fac Gar Fac Matter Collected 2759 | 263 102 80 906 94 . . 698 372 . . 244 . . . Remotely . | . . . . . . . . . . . . . . . Salvage Created 2276 | 91 102 63 898 2 . . 824 85 . . 170 . . 41 Parts 164 | 6 4 14 73 6 . . 46 4 . . 6 . . 5 Haulers Intercepted 1 | . . . . . . . 1 . . . . . . . Recyclers Shooed 6 | 1 . . 2 . . . 2 1 . . . . . . Parts Field Recycled . | . . . . . . . . . . . . . . . Retrieved Matter . | . . . . . . . . . . . . . . . Parts Self-Destructed . | . . . . . . . . . . . . . . . Prevented . | . . . . . . . . . . . . . . . Kills | -11 -10 -10 -9 -9 -9 -8 -8 -7 -6 -6 -6 -5 -5 -5 ------- Run | Scr Mat Min Mat Min Exi Min Mat Fac Fac Gar Fac Fac Gar Fac Combat Hostiles Destroyed 52 | . 2 4 21 3 . . 17 4 . . . . . 1 Melee 4 | . . . . . . . . 4 . . . . . . Guns 38 | . 2 4 21 1 . . 10 . . . . . . . Cannons 4 | . . . . . . . 4 . . . . . . . AOE 6 | . . . . 2 . . 3 . . . . . . 1 Classes Destroyed 12 | 2 1 1 3 . . . 3 2 . . . . . . Tunneler 1 | 1 . . . . . . . . . . . . . . Hauler 1 | . . . . . . . 1 . . . . . . . Recycler 4 | 1 . . 1 . . . 1 . . . 1 . . . Operator 2 | . . . . . . . 2 . . . . . . . Watcher 9 | . . . 4 . . . 4 . . . 1 . . . Swarmer 19 | . . 4 8 3 . . 4 . . . . . . . Grunt 19 | . 2 . 8 . . . 9 . . . . . . . Brawler 1 | . . . 1 . . . . . . . . . . . Sentry 6 | . . . 4 . . . 2 . . . . . . . Hunter 2 | . . . . . . . 2 . . . . . . . Programmer 2 | . . . . . . . . 1 . . . . . 1 Assembled 3 | . . . . . . . . 3 . . . . . . Best Kill Streak 4 | 2 1 4 4 3 . . 4 3 . . 1 . . 1 Combat Bots Only 4 | . 1 4 4 3 . . 4 3 . . . . . 1 Max Kills in Single Turn 3 | 1 1 1 1 1 . . 3 1 . . 1 . . 1 Gunslinging . | . . . . . . . . . . . . . . . Exploded 2 | . . . . 1 . . 2 . . . . . . 1 Melee 1 | . . . . . . . . 1 . . . . . . Uniques/NPCs Destroyed . | . . . . . . . . . . . . . . . Combat | -11 -10 -10 -9 -9 -9 -8 -8 -7 -6 -6 -6 -5 -5 -5 -------- Run | Scr Mat Min Mat Min Exi Min Mat Fac Fac Gar Fac Fac Gar Fac Damage Taken 5275 | . 71 50 1038 69 . . 1932 254 . 111 37 . 122 1591 Core 1401 | . 17 7 180 . . . 165 31 . . . . . 1001 Absorbed by Shields 14 | . . . . . . . . . . . . . 14 . Core Remaining (%) 85 | 100 . 90 . . . 55 70 95 . . 100 . . . Volleys Fired 226 | 7 13 6 96 4 . . 96 . . . 4 . . . Largest 2 | 2 2 2 2 2 . . 2 . . . 1 . . . Hottest 104 | 40 60 60 60 53 . . 104 . . . 30 . . . Shots Fired 430 | 11 26 12 192 8 . . 171 1 . 5 4 . . . Gun 390 | 11 26 12 192 6 . . 137 1 . 5 . . . . Cannon 32 | . . . . . . . 32 . . . . . . . Launcher 8 | . . . . 2 . . 2 . . . 4 . . . Special . | . . . . . . . . . . . . . . . Kinetic 391 | 11 25 6 185 6 . . 158 . . . . . . . Thermal 17 | . . . . . . . 11 1 . 5 . . . . Explosive 8 | . . . . 2 . . 2 . . . 4 . . . Electromagnetic 14 | . 1 6 7 . . . . . . . . . . . Robot Hit Streak 18 | 4 12 3 18 . . . 13 8 . 3 . . . . Robot Miss Streak 9 | 3 5 2 9 2 . . 6 . . 1 . . . . Penetration Max . | . . . . . . . . . . . . . . . Secondary Targets 5 | . . . 4 . . . 1 . . . . . . . Max Gunslinging Chain 1 | . . . 1 . . . 1 . . . . . . . Autonomous 6 | . . . . . . . . 1 . 5 . . . . Shots Hit Robots 281 | 8 19 4 120 . . . 111 9 . 3 4 . . 3 Core Hits 117 | 3 7 4 43 3 . . 49 4 . 1 2 . . 1 Critical Hits 2 | . . . 1 . . . 1 . . . . . . . Critical Kills 2 | . . . 1 . . . 1 . . . . . . . Critical Parts Destroyed . | . . . . . . . . . . . . . . . Melee Attacks 48 | . . . . . . . 4 14 . . 19 1 1 9 Impact 4 | . . . . . . . 4 . . . . . . . Slashing 44 | . . . . . . . . 14 . . 19 1 1 9 Piercing . | . . . . . . . . . . . . . . . Sneak Attacks 5 | . . . . . . . 1 1 . . 3 . . . Combat Hostiles . | . . . . . . . . . . . . . . . Follow-up Attacks . | . . . . . . . . . . . . . . . Damage Inflicted 5299 | 88 175 45 1230 405 . . 2226 511 . 81 421 . . 117 Guns 3036 | 88 175 45 1230 16 . . 1371 30 . 81 . . . . Cannons 521 | . . . . . . . 521 . . . . . . . Explosions 660 | . . . . 389 . . 271 . . . . . . . Melee 1082 | . . . . . . . 63 481 . . 421 . . 117 Ramming . | . . . . . . . . . . . . . . . Kinetic 3275 | 88 175 11 1177 16 . . 1808 . . . . . . . Thermal 195 | . . . . . . . 84 30 . 81 . . . . Explosive 660 | . . . . 389 . . 271 . . . . . . . Electromagnetic 87 | . . 34 53 . . . . . . . . . . . Impact 63 | . . . . . . . 63 . . . . . . . Slashing 1019 | . . . . . . . . 481 . . 421 . . 117 Piercing . | . . . . . . . . . . . . . . . Highest Corruption 8 | . . . . . . . . 8 . . 1 . . 1 Average Corruption 5 | . . . . . . . . 7 . . 1 . . 1 Corruption Purged . | . . . . . . . . . . . . . . . Effects 26 | . . . . . . . . 24 . . 2 . . . Message Errors 6 | . . . . . . . . 4 . . 2 . . . Matter Fused 10 | . . . . . . . . 10 . . . . . . Energy Discharges 3 | . . . . . . . . 3 . . . . . . Data Loss (minor) 6 | . . . . . . . . 6 . . . . . . Targeting Errors 1 | . . . . . . . . 1 . . . . . . Overload Shots . | . . . . . . . . . . . . . . . Overflow Damage 326 | . . . . 77 . . 50 13 . . 186 . . . Projectiles 17 | . . . . . . . 17 . . . . . . . Explosions 77 | . . . . 77 . . . . . . . . . . Melee 232 | . . . . . . . 33 13 . . 186 . . . Knockbacks 6 | . . . . . . . 6 . . . . . . . Impact . | . . . . . . . . . . . . . . . Kinetic 6 | . . . . . . . 6 . . . . . . . Secondary . | . . . . . . . . . . . . . . . Self-Inflicted Damage 17 | . . . . 17 . . . . . . . . . . Shots 1 | . . . . 1 . . . . . . . . . . Rammed . | . . . . . . . . . . . . . . . Targets Rammed . | . . . . . . . . . . . . . . . Kicked . | . . . . . . . . . . . . . . . Crushed . | . . . . . . . . . . . . . . . Highest Temperature 133 | . 9 . 20 4 . . 133 41 59 45 12 . 29 15 Average Temperature 20 | . 8 . 5 3 . . 33 12 31 40 6 . 9 7 Received Heat Transfer 1526 | . 39 . 339 . . . 648 80 . 57 18 . 27 318 Siege Activations . | . . . . . . . . . . . . . . . Robots Corrupted . | . . . . . . . . . . . . . . . Combat Hostiles . | . . . . . . . . . . . . . . . Parts Fried . | . . . . . . . . . . . . . . . Impact Corruptions 2 | . . . . . . . 2 . . . . . . . Robots Melted . | . . . . . . . . . . . . . . . Combat Hostiles . | . . . . . . . . . . . . . . . Parts Melted . | . . . . . . . . . . . . . . . Heat Transferred 333 | . . . . . . . 185 37 . 111 . . . . Parts Sabotaged . | . . . . . . . . . . . . . . . Parts Stolen . | . . . . . . . . . . . . . . . Parts Stripped . | . . . . . . . . . . . . . . . Power Chain Reactions . | . . . . . . . . . . . . . . . Missiles Intercepted . | . . . . . . . . . . . . . . . Alert | -11 -10 -10 -9 -9 -9 -8 -8 -7 -6 -6 -6 -5 -5 -5 ------- Run | Scr Mat Min Mat Min Exi Min Mat Fac Fac Gar Fac Fac Gar Fac Peak Influence 262 | 10 135 182 245 180 . . 262 63 26 18 162 20 74 41 Initial 70 | . 6 52 70 17 . . . 56 26 18 9 18 14 33 Average 68 | 5 30 121 91 57 . . 123 34 26 18 57 19 43 23 Maximum Alert Level 1 | . . . 1 . . . 1 . . . . . . . Low Security (%) 95 | 100 100 100 95 100 . 100 82 100 100 100 100 100 100 100 Level 1 4 | . . . 4 . . . 17 . . . . . . . Level 2 . | . . . . . . . . . . . . . . . Level 3 . | . . . . . . . . . . . . . . . Level 4 . | . . . . . . . . . . . . . . . Level 5 . | . . . . . . . . . . . . . . . High Security . | . . . . . . . . . . . . . . . Max Security . | . . . . . . . . . . . . . . . Squads Dispatched 14 | . 1 . 2 . . . 3 2 . . 4 . . 2 Investigation 6 | . . . 2 . . . 1 . . . 3 . . . Extermination 3 | . . . . . . . . 2 . . . . . 1 Reinforcement 5 | . 1 . . . . . 2 . . . 1 . . 1 Assault . | . . . . . . . . . . . . . . . Garrison . | . . . . . . . . . . . . . . . Intercept . | . . . . . . . . . . . . . . . Construction Impeded 1 | . . . . . . . . . . . 1 . . . Haulers Reinforced . | . . . . . . . . . . . . . . . Stealth | -11 -10 -10 -9 -9 -9 -8 -8 -7 -6 -6 -6 -5 -5 -5 --------- Run | Scr Mat Min Mat Min Exi Min Mat Fac Fac Gar Fac Fac Gar Fac Distress Signals 10 | . 1 . 5 . . . 4 . . . . . . . Communications Jammed . | . . . . . . . . . . . . . . . Distress Signals . | . . . . . . . . . . . . . . . Times Spotted 138 | . 9 6 35 11 . . 34 6 . 12 5 . 2 18 Peak Tracking Total 15 | . 4 3 5 4 . . 6 4 . 12 2 . 2 15 Tactical Retreats 18 | . 1 1 1 2 . . 5 4 . . 3 . . 1 Traps | -11 -10 -10 -9 -9 -9 -8 -8 -7 -6 -6 -6 -5 -5 -5 ------- Run | Scr Mat Min Mat Min Exi Min Mat Fac Fac Gar Fac Fac Gar Fac Traps Triggered 10 | . . . . . . . 1 1 . 1 2 . 5 . Indirectly . | . . . . . . . . . . . . . . . Trap Hack Attempts . | . . . . . . . . . . . . . . . Triggered . | . . . . . . . . . . . . . . . Disarmed . | . . . . . . . . . . . . . . . Reprogrammed 4 | . . . . . . . . 4 . . . . . . Reused . | . . . . . . . . . . . . . . . Traps Extracted . | . . . . . . . . . . . . . . . Installed . | . . . . . . . . . . . . . . . Triggered . | . . . . . . . . . . . . . . . Machines | -11 -10 -10 -9 -9 -9 -8 -8 -7 -6 -6 -6 -5 -5 -5 ---------- Run | Scr Mat Min Mat Min Exi Min Mat Fac Fac Gar Fac Fac Gar Fac Machines Disabled 7 | . . . . . . . 6 . . . . . 1 . Max in Single Turn 2 | . . . . . . . 2 . . . . . 1 . Garrison Relay 1 | . . . . . . . . . . . . . 1 . Machines Sabotaged . | . . . . . . . . . . . . . . . Garrisons Compromised . | . . . . . . . . . . . . . . . Overloaded Fab Kills . | . . . . . . . . . . . . . . . Fab Network Shutdowns . | . . . . . . . . . . . . . . . Hacking | -11 -10 -10 -9 -9 -9 -8 -8 -7 -6 -6 -6 -5 -5 -5 --------- Run | Scr Mat Min Mat Min Exi Min Mat Fac Fac Gar Fac Fac Gar Fac Machines Accessed 25 | . 1 . 5 2 2 . 2 4 2 . 5 1 . 1 Terminals 15 | . 1 . 4 1 . . 1 2 . . 5 . . 1 Fabricators . | . . . . . . . . . . . . . . . Repair Stations . | . . . . . . . . . . . . . . . Recycling Units 3 | . . . 1 . . . . 1 1 . . . . . Scanalyzers 1 | . . . . . . . 1 . . . . . . . Garrison Access 3 | . . . . . . . . 1 1 . . 1 . . Total Hacks 73 | . 3 . 19 5 6 . 4 12 4 . 16 1 . 3 Successful 43 | . 2 . 9 3 6 . 3 7 2 . 8 1 . 2 Failed 30 | . 1 . 10 2 . . 1 5 2 . 8 . . 1 Catastrophic 6 | . 1 . 2 . . . 1 . . . 1 . . 1 Database Lockouts . | . . . . . . . . . . . . . . . Manual 50 | . 3 . 14 4 1 . 4 7 . . 15 . . 2 Terminals 53 | . 3 . 16 4 . . 3 8 . . 16 . . 3 Fabricators . | . . . . . . . . . . . . . . . Repair Stations . | . . . . . . . . . . . . . . . Recycling Units 7 | . . . 3 . . . . 2 2 . . . . . Scanalyzers 1 | . . . . . . . 1 . . . . . . . Garrison Access 5 | . . . . . . . . 2 2 . . 1 . . Terminal Hacks 22 | . 1 . 4 2 6 . 1 3 . . 4 . . 1 Record 7 | . . . 1 . 5 . . . . . 1 . . . Part Schematic 1 | . . . . . . . . . . . 1 . . . Robot Analysis 1 | . . . . . . . . . . . . . . 1 Prototype ID Bank 1 | . . . 1 . . . . . . . . . . . Open Door 1 | . . . . 1 . . . . . . . . . . Level Access Points 1 | . . . . . . . . . . . 1 . . . Unreport Threat 8 | . 1 . 2 1 . . 1 2 . . 1 . . . Reprogram Traps 1 | . . . . . . . . 1 . . . . . . EX-Prototype ID Bank 1 | . . . . . 1 . . . . . . . . . Fabricator Hacks . | . . . . . . . . . . . . . . . Repair Station Hacks . | . . . . . . . . . . . . . . . Recycling Unit Hacks 3 | . . . 1 . . . . 1 1 . . . . . Report Inventory 3 | . . . 1 . . . . 1 1 . . . . . Scanalyzer . | . . . . . . . . . . . . . . . Garrison Access Hacks 3 | . . . . . . . . 1 1 . . 1 . . Unlock Access 3 | . . . . . . . . 1 1 . . 1 . . Unauthorized Hacks 15 | . 1 . 4 1 . . 2 2 . . 4 . . 1 Terminals 14 | . 1 . 4 1 . . 1 2 . . 4 . . 1 Botnet 14 | . 1 . 4 1 . . 1 2 . . 4 . . 1 Fabricators . | . . . . . . . . . . . . . . . Repair Stations . | . . . . . . . . . . . . . . . Recycling Units . | . . . . . . . . . . . . . . . Scanalyzers 1 | . . . . . . . 1 . . . . . . . Researchers 1 | . . . . . . . 1 . . . . . . . Garrison Access . | . . . . . . . . . . . . . . . Data Cores Recovered . | . . . . . . . . . . . . . . . Used . | . . . . . . . . . . . . . . . Hacking Detections 18 | . 1 . 5 . . . 1 3 2 . 5 . . 1 Full Trace Events 7 | . 1 . 2 . . . 1 . . . 3 . . . Feedback Events 1 | . . . . . . . . . . . 1 . . . Corruption 1 | . . . . . . . . . . . 1 . . . Feedback Blocked . | . . . . . . . . . . . . . . . Robot Schematics Acquired . | . . . . . . . . . . . . . . . Robots Built . | . . . . . . . . . . . . . . . Matter . | . . . . . . . . . . . . . . . Time . | . . . . . . . . . . . . . . . Total Robot Build Rating . | . . . . . . . . . . . . . . . Part Schematics Acquired 1 | . . . . . . . . . . . 1 . . . Parts Built . | . . . . . . . . . . . . . . . Matter . | . . . . . . . . . . . . . . . Time . | . . . . . . . . . . . . . . . Total Part Build Rating . | . . . . . . . . . . . . . . . Parts Repaired . | . . . . . . . . . . . . . . . Time . | . . . . . . . . . . . . . . . Parts Recycled . | . . . . . . . . . . . . . . . Recycled Matter . | . . . . . . . . . . . . . . . Retrieved Matter . | . . . . . . . . . . . . . . . Retrieved Components . | . . . . . . . . . . . . . . . Parts Scanalyzed . | . . . . . . . . . . . . . . . Part Schematics Acquired . | . . . . . . . . . . . . . . . Parts Damaged . | . . . . . . . . . . . . . . . Bothacking | -11 -10 -10 -9 -9 -9 -8 -8 -7 -6 -6 -6 -5 -5 -5 ------------ Run | Scr Mat Min Mat Min Exi Min Mat Fac Fac Gar Fac Fac Gar Fac Used RIF Installer 1 | . . . . . . . . . . 1 . . . . Robots Hacked . | . . . . . . . . . . . . . . . Non-combat . | . . . . . . . . . . . . . . . Combat . | . . . . . . . . . . . . . . . Robot Hacks Applied . | . . . . . . . . . . . . . . . Relay Couplers Released 4 | . . . . . . . . . . . . . 4 . Machine Destruction 4 | . . . . . . . . . . . . . 4 . Attached 1 | . . . . . . . . . . . . . 1 . Robots Rewired . | . . . . . . . . . . . . . . . Allies Hacked . | . . . . . . . . . . . . . . . Hacks Repelled . | . . . . . . . . . . . . . . . Allies | -11 -10 -10 -9 -9 -9 -8 -8 -7 -6 -6 -6 -5 -5 -5 -------- Run | Scr Mat Min Mat Min Exi Min Mat Fac Fac Gar Fac Fac Gar Fac Total Allies 3 | . . . . 3 . . . . . . . . . . Largest Group 3 | . . . . 3 2 2 2 . . . . . . . Highest-Rated Group 40 | . . . . 40 32 32 32 . . . . . . . Highest-Rated Ally 16 | . . . . 16 16 16 16 . . . . . . . Total Orders . | . . . . . . . . . . . . . . . Ally Attacks 41 | . . . . 29 . . 12 . . . . . . . Total Damage 541 | . . . . 413 . . 128 . . . . . . . Kills 9 | . . . . 6 . . 3 . . . . . . . Allies Corrupted . | . . . . . . . . . . . . . . . Allies Melted . | . . . . . . . . . . . . . . . Intel | -11 -10 -10 -9 -9 -9 -8 -8 -7 -6 -6 -6 -5 -5 -5 ------- Run | Scr Mat Min Mat Min Exi Min Mat Fac Fac Gar Fac Fac Gar Fac Robot Analysis Total 1 | . . . . . . . . . . . . . . 1 Derelict Logs Recovered 2 | . . . . 2 . . . . . . . . . . Drone Launches . | . . . . . . . . . . . . . . . Drone Recoveries . | . . . . . . . . . . . . . . . Exploration | -11 -10 -10 -9 -9 -9 -8 -8 -7 -6 -6 -6 -5 -5 -5 ------------- Run | Scr Mat Min Mat Min Exi Min Mat Fac Fac Gar Fac Fac Gar Fac Turns Passed 7673 | 118 254 198 1368 1133 432 39 1484 1008 128 78 466 14 152 801 Spaces Moved 5516 | 67 178 128 751 908 359 18 587 821 268 138 862 35 207 189 Core 10 | 7 . . . . . . . . . . . . . 3 Treads 283 | 29 5 16 52 1 . . 153 27 . . . . . . Legs 328 | . . . . . . . 262 66 . . . . . . Wheels 2471 | 31 173 112 699 907 359 18 172 . . . . . . . Hover 215 | . . . . . . . . 215 . . . . . . Flight 2209 | . . . . . . . . 513 268 138 862 35 207 186 Fastest Speed 25 | 50 90 110 100 120 120 120 100 28 25 25 25 25 25 25 Average Speed 85 | 113 110 128 122 120 120 120 145 60 25 25 27 26 28 34 Slowest Speed 350 | 160 180 200 200 200 120 120 270 180 25 25 111 28 108 350 Overloaded Moves . | . . . . . . . . . . . . . . . Propulsion Burnouts . | . . . . . . . . . . . . . . . Robots Hopped 5 | . . . . . . . . 1 1 . 3 . . . Cave-ins Triggered . | . . . . . . . . . . . . . . . Exploration Rate (%) 31 | 4 34 43 50 100 71 6 30 9 8 45 26 1 36 5 Regions Visited 14 Branch Regions 4 Pre-discovered Areas 1 | . . . . . 1 . . . . . . . . . Known Exits Taken 9 | . . . 1 1 1 1 1 1 1 . 1 1 . . Unknown Exits Taken 3 | 1 1 1 . . . . . . . . . . . . Scrap Searched 3 | . . 1 . 2 . . . . . . . . . . Spaces Dug 58 | . . . . 12 . . 2 5 . . 34 1 . 4 Terrain Destroyed 112 | . . . . 25 . . 24 5 . . 53 1 . 4 Melee 24 | . . . . . . . 2 5 . . 12 1 . 4 Projectile 5 | . . . . . . . 5 . . . . . . . AOE 83 | . . . . 25 . . 17 . . . 41 . . . Terrain Rammed . | . . . . . . . . . . . . . . . Walls Destroyed . | . . . . . . . . . . . . . . . Machines Disabled . | . . . . . . . . . . . . . . . Actions | -11 -10 -10 -9 -9 -9 -8 -8 -7 -6 -6 -6 -5 -5 -5 --------- Run | Scr Mat Min Mat Min Exi Min Mat Fac Fac Gar Fac Fac Gar Fac Total 8005 | 97 211 153 1040 946 361 35 1044 1311 328 180 1052 38 298 911 Wait 1823 | . 9 . 124 20 . 18 291 420 51 25 143 . 15 707 Move 5495 | 66 177 127 750 907 358 17 586 818 266 137 856 35 206 189 Hop 4 | . . . . . . . . 1 1 . 2 . . . Pick Up 84 | 13 5 10 18 4 1 . 16 4 3 . 7 1 2 . Fast Attach 39 | 5 . . 5 . . . 11 11 1 . 4 . 1 1 Attach 32 | 2 . . 3 . . . 7 11 2 . 3 1 1 2 Detach 16 | . . . 2 . . . 1 11 1 . . . . 1 Swap 55 | 1 5 3 14 5 . . 14 3 1 . 6 . 2 1 Drop 97 | 3 2 7 28 6 2 . 18 18 2 . 8 . 2 1 Fire 226 | 7 13 6 96 4 . . 96 . . . 4 . . . Melee 48 | . . . . . . . 4 14 . . 19 1 1 9 Ram . | . . . . . . . . . . . . . . . Kick . | . . . . . . . . . . . . . . . Crush . | . . . . . . . . . . . . . . . Escape Stasis 86 | . . . . . . . . . . 18 . . 68 . Rewire . | . . . . . . . . . . . . . . . Trap . | . . . . . . . . . . . . . . . Miscellaneous . | . . . . . . . . . . . . . . . Route ------- -11/Scrapyard -10/Materials -10/Mines -9/Materials (discovered 3 exits: *Mat / *Min / *Sto) -9/Mines (discovered 3 exits: *Mat x2 / *Exi) -9/Exiles -8/Mines -8/Materials -7/Factory (discovered 3 exits: *Fac / *Low / Gar) -6/Factory -6/Garrison -6/Factory (discovered 5 exits: *Fac x4 / *Low) -5/Factory -5/Garrison -5/Factory History --------- Turn | Location | Event 14 | -11/Scrapyard | Discovered new exit (range 15) 119 | -11/Scrapyard | Entered Materials 294 | -10/Materials | Discovered new exit (range 7) 300 | -10/Materials | Build established: Mutant 373 | -10/Materials | Entered Mines 552 | -10/Mines | Discovered new exit (range 8) 571 | -10/Mines | Entered Materials 571 | -9/Materials | Evolved 2 slots: Utility x2 1081 | -9/Materials | Discovered new exit (range 16) 1119 | -9/Materials | Identified exit to Storage 1148 | -9/Materials | Build established: Scavenger-Mutant 1494 | -9/Materials | Discovered new exit (range 16) 1511 | -9/Materials | Identified exit to Materials 1791 | -9/Materials | Discovered new exit (range 16) 1921 | -9/Materials | Identified exit to Mines 1939 | -9/Materials | Entered Mines 1961 | -9/Mines | Discovered exit to Materials (range 10) 1988 | -9/Mines | Assisted by bots powering up and referring to "LRC-V3" 2179 | -9/Mines | Discovered exit to Materials (range 6) 2275 | -9/Mines | Learned 4 Materials zone layouts 2283 | -9/Mines | Build established: Mutant 2411 | -9/Mines | Identified exit to Exiles 2422 | -9/Mines | Found the Drone Emporium 2432 | -9/Mines | Found Prototype Device 2574 | -9/Mines | Found a hidden stash of uninstalled traps 3026 | -9/Mines | Deemed a non-threat by the Exiles lab entrance 3072 | -9/Mines | Entered Exiles 3072 | -9/Exiles | Accompanied by 2 allies 3102 | -9/Exiles | Met 8R-AWN 3122 | -9/Exiles | Met EX-HEX 3167 | -9/Exiles | Met EX-DEC 3260 | -9/Exiles | Learned location of Zion (-6) 3279 | -9/Exiles | Met EX-BIN 3305 | -9/Exiles | Aligned with FarCom system 3306 | -9/Exiles | Given EX-Vault access code 3336 | -9/Exiles | Opened EX-Vault 3358 | -9/Exiles | Found AWS/Thermal 3385 | -9/Exiles | Warned to stay clear of 0b10 Research branches 3490 | -9/Exiles | Discovered new exit (range 12) 3500 | -9/Exiles | Identified exit to Mines 3504 | -9/Exiles | Left Exiles lab with AWS/Thermal 3504 | -9/Exiles | Entered Mines 3504 | -8/Mines | Accompanied by 2 allies 3517 | -8/Mines | Discovered exit to Materials (range 7) 3543 | -8/Mines | Entered Materials 3543 | -8/Materials | Accompanied by 2 allies 3543 | -8/Materials | Evolved 2 slots: Propulsion x2 3544 | -8/Materials | Identified exit to Factory 4267 | -8/Materials | Build established: Scavenger-Mutant 4448 | -8/Materials | Lost 5 parts (3n1u1w) 4765 | -8/Materials | Lost 5 parts (1p1n3w) 5027 | -8/Materials | Entered Factory 5027 | -7/Factory | Evolved 2 slots: Propulsion x1, Utility x1 5027 | -7/Factory | Discovered new exit (range 14) 5045 | -7/Factory | Identified exit to Lower Caves 5208 | -7/Factory | Assembled infested ambush trap array 5272 | -7/Factory | Discovered new exit (range 13) 5695 | -7/Factory | Build established: Sprinter 5992 | -7/Factory | Identified exit to Garrison 6035 | -7/Factory | Identified exit to Factory 6035 | -7/Factory | Entered another Factory area 6035 | -6/Factory | Evolved 2 slots: Power x1, Propulsion x1 6163 | -6/Factory | Identified exit to Garrison 6163 | -6/Factory | Entered Garrison 6222 | -6/Garrison | Triggered checkpoint 6228 | -6/Garrison | Triggered checkpoint 6236 | -6/Garrison | Discovered new exit (range 9) 6238 | -6/Garrison | Identified exit to Factory 6240 | -6/Garrison | Installed Relay Interface Framework 6241 | -6/Garrison | Entered Factory 6645 | -6/Factory | Discovered new exit (range 13) 6651 | -6/Factory | Identified exit to Lower Caves 6657 | -6/Factory | Identified exit to Factory 6685 | -6/Factory | Build established: Hacker-Sprinter 6707 | -6/Factory | Entered another Factory area 6707 | -5/Factory | Evolved 2 slots: Utility x2 6721 | -5/Factory | Identified exit to Garrison 6721 | -5/Factory | Entered Garrison 6778 | -5/Garrison | Triggered checkpoint 6785 | -5/Garrison | Garrison Relay disabled 6845 | -5/Garrison | Spotted B-75 Beast 6845 | -5/Garrison | Triggered checkpoint 6855 | -5/Garrison | Triggered checkpoint 6864 | -5/Garrison | Discovered new exit (range 15) 6873 | -5/Garrison | Identified exit to Factory 6873 | -5/Garrison | Entered Factory 6881 | -5/Factory | Lost 3 parts (2p1u) 7661 | -5/Factory | Core integrity fell below 50% 7671 | -5/Factory | Core integrity fell below 20% 7674 | -5/Factory | Destroyed by G-67 Veteran with Electrolaser Last Messages --------------- 07660_ Chainsword destroyed. 07661_ Hacking Suite destroyed. 07662_ R-10 Processor collects Adv. Heat Sink. 07663_ Nuclear Reactor explodes. 07665_ Lrg. Storage Unit destroyed. 07665_ P-70 Sage destroyed. 07665_ R-10 Processor collects Prototype Energy Gun. 07666_ U-05 Engineer lays Concrete. 07667_ Imp. System Shield destroyed. 07667_ Relay Coupler [NC] destroyed. 07667_ U-05 Engineer lays Concrete. 07668_ K-01 Serf collects debris. 07668_ U-05 Engineer lays Concrete. 07668_ R-10 Processor collects Prototype Energy Cannon. 07670_ U-05 Engineer lays Concrete. 07671_ The unstable cave ceiling collapses. 07671_ K-01 Serf collects debris. 07671_ U-05 Engineer lays Concrete. 07673_ K-01 Serf collects debris. 07674_ U-05 Engineer lays Concrete. Map ----- +----------------------------------------------------+ | ?# # """"""""" #???????????????????? | | ?# # #???????????????????? | | ?# # !!! #???????????????????? | | #####/##### # ! !!! #???????????????????? | | # [# # !!! #???????????????????? | | # # # #???????????????????? | | # # + """"""""" #???????????????????? | | # """ # #???????????????????? | | # """ # # """"""""" #???????????????????? | | # """ # # #???????????????????? | | # # # #???????????????????? | | # ! # ####+##########??????????????????? | | ###/####### ^ #???? ??????????????????? | | ??#??????## #?? ???""?????????????? | | ????????#"" ^ g #??"" """ ""?????????????? | | ????????#"" ""T""g #??"" """ R"????????????? | | ????????#G """"" g#??"" """ """#???????????? | | ????????#"" #?? ????????????? | | ????????#"" ### #####?????????? | | ????????### [ % ????????? | | ??????????# = ????????? | | ??????????# ggg % ????????? | | ??????????# g* R ?????????? | | ?????????? k = ]% =????????? | | ?????????? ! ????????? | | ?????????? o !@ ????????? | | ?????????? k ????????? | | ???????????? " ????????? | | ???????????? "" ?????????? | | ???????????? u ?????????? | | ???????????? A m ??????????? | | ???????????? ##### #+# #??????????? | | ???????????? ????? # ######??????????? | | ??????????????????? # """ """ #???????????????? | | ??????????????????"""" # """ """ #???????????????? | | ??????????????????""""?# """ ""? #???????????????? | | ?????????????????????"?# ??? ???????????????????? | | ???????????????????????# ????"???????????????????? | | ???????????????????????? ????????????????????????? | | ???????????????????????? ????????????????????????? | | ????????????????????????#????????????????????????? | | ?????????????????????????????????????????????????? | | ?????????????????????????????????????????????????? | | ?????????????????????????????????????????????????? | | ?????????????????????????????????????????????????? | | ?????????????????????????????????????????????????? | | ?????????????????????????????????????????????????? | | ?????????????????????????????????????????????????? | | ?????????????????????????????????????????????????? | | ?????????????????????????????????????????????????? | +----------------------------------------------------+ Best States ------------- Heat Dissipation 54 Energy Generation 28 Energy Capacity 265 Matter Stores 300 Matter Capacity 300 Sight Range 16 Robot Scan Range 13 Terrain Scan Range 16 Terrain Scan Density 10 ECM Strength 3 Additional Mass Support 9 Armor Coverage 225 Evasion (%) 65 Melee Accuracy 5 Recoil Reduction 2 Offensive Hacking 20 Defensive Hacking 24 Relay Coupler Types 30 Relay Coupler Value 1 Item Schematics ----------------- Lgt. Antimatter Reactor | -6/Factory | Hacked Robot Schematics ------------------ None Fabricated ------------ Nothing Alien Tech Used ----------------- None Achievements -------------- None Challenges ------------ None Game ------ Seed AssaultDecoderThruster Manual? 0 Play Time 02:33:40 Cumulative 102.8 hours Start 2021.12.20 @ 18:36:14 End 2021.12.22 @ 15:04:11 Sessions 5 Manual Loads 0 Difficulty Rogue Special Mode None Game No. 39 Rogue 39 Adventurer 0 Explorer 0 Win Type - Total 1 Types 1/0/0/0/0/0/0/0/0 Lore% 41 Gallery% 57 Achievement% 43 Wizard Run 0 Options --------- ASCII 0 Keyboard 1 Movement Numpad Keybinds 0 Fullscreen 1 Font 36/Smallcaps Map View 76x50 Tactical HUD 1 Map Filters NONE Filters NONE Steam 1 RUN: 0b607c6b-b6e8-4832-ab0b-a623f0ef8cab